fUSD/lending_fUSD_20250826
["ID","MTS","AMOUNT","RATE_DAILY","PERIOD"]
[381462467,1756223441036,-495.0,0.00018462,2]
[381462469,1756223441045,-938.0,0.00018466,2]
[381462471,1756223441055,-938.0,0.00018466,2]
[381462473,1756223441064,-938.0,0.00018466,2]
[381462475,1756223441074,-938.0,0.00018466,2]
[381462477,1756223441084,-938.0,0.00018466,2]
[381462479,1756223441093,-938.0,0.00018466,2]
[381462481,1756223441103,-938.0,0.00018466,2]
[381462483,1756223441112,-938.0,0.00018466,2]
[381462485,1756223441122,-938.0,0.00018466,2]
[381462487,1756223441134,-938.0,0.00018466,2]
[381462489,1756223441144,-938.0,0.00018466,2]
[381462491,1756223441153,-938.0,0.00018466,2]
[381462493,1756223441162,-938.0,0.00018466,2]
[381462495,1756223441172,-938.0,0.00018466,2]
[381462497,1756223441182,-362.0,0.0001848,2]
[381462499,1756223441191,-1000.0,0.00018521,2]
[381462501,1756223441201,-500.0,0.00018521,2]
[381462503,1756223441210,-1000.0,0.00018521,2]
[381462505,1756223441220,-269.29286367,0.00018521,2]
[381462507,1756223441229,-500.0,0.00018521,2]
[381462509,1756223441239,-500.0,0.00018521,2]
[381462511,1756223441251,-151.44,0.00018527,2]
[381462513,1756223441260,-500.0,0.00018547,2]
[381462515,1756223441270,-179.07893877,0.00018557,2]
[381462517,1756223441279,-12040.0936613,0.00018567,2]
[381462519,1756223441288,-6312.53845038,0.00018567,2]
[381462521,1756223441298,-432.0,0.00018608,2]
[381462523,1756223441307,-420.0,0.00018608,2]
[381462525,1756223441316,-1000.0,0.0001866,2]
[381462527,1756223441325,-1106.0,0.0001866,2]
[381462529,1756223441335,-3374.0,0.00018678,2]
[381462531,1756223441344,-1256.0,0.00018678,2]
[381462533,1756223441355,-2031.0,0.00018678,2]
[381462535,1756223441365,-926.0,0.00018678,2]
[381462537,1756223441375,-599.0,0.00018678,2]
[381462539,1756223441384,-566.0,0.00018678,2]
[381462541,1756223441394,-1658.0,0.00018678,2]
[381462543,1756223441403,-1298.0,0.00018678,2]
[381462545,1756223441413,-6146.0,0.00018678,2]
[381462547,1756223441422,-718.0,0.00018678,2]
[381462549,1756223441431,-4155.0,0.00018678,2]
[381462551,1756223441441,-21104.0,0.00018678,2]
[381462553,1756223441451,-2000.0,0.00018699,2]
[381462556,1756223441460,-1680.0,0.00018701,2]
[381462558,1756223441470,-185.23,0.00018708,2]
[381462560,1756223441479,-168.0,0.00018751,2]
[381462562,1756223441488,-168.0,0.00018756,2]
[381462564,1756223441498,-1000.0,0.0001877,2]
[381462566,1756223441508,-500.0,0.0001877,2]
[381462568,1756223441517,-152.9,0.000188,2]
[381462569,1756223441527,-152.9,0.000188,2]
[381462571,1756223441536,-152.9,0.000188,2]
[381462573,1756223441545,-152.9,0.000188,2]
[381462575,1756223441555,-152.9,0.000188,2]
[381462578,1756223441564,-152.9,0.000188,2]
[381462580,1756223441574,-152.9,0.000188,2]
[381462581,1756223441583,-152.9,0.000188,2]
[381462583,1756223441593,-152.9,0.000188,2]
[381462586,1756223441603,-152.9,0.000188,2]
[381462588,1756223441612,-152.9,0.000188,2]
[381462590,1756223441622,-152.9,0.000188,2]
[381462592,1756223441631,-152.9,0.000188,2]
[381462594,1756223441640,-152.9,0.000188,2]
[381462596,1756223441650,-152.9,0.000188,2]
[381462598,1756223441660,-152.9,0.000188,2]
[381462600,1756223441669,-152.9,0.000188,2]
[381462602,1756223441679,-168.0,0.00018807,2]
[381462604,1756223441689,-168.0,0.00018816,2]
[381462606,1756223441698,-1363.78584,0.0001882,2]
[381462608,1756223441708,-500.0,0.00018821,2]
[381462609,1756223441717,-168.0,0.00018844,2]
[381462611,1756223441727,-152.9,0.0001885,2]
[381462614,1756223441739,-152.9,0.0001885,2]
[381462615,1756223441756,-152.9,0.0001885,2]
[381462618,1756223441767,-152.9,0.0001885,2]
[381462620,1756223441776,-150.0,0.00018859,2]
[381462621,1756223441785,-300.0,0.00018859,2]
[381462623,1756223441795,-300.0,0.00018859,2]
[381462626,1756223441805,-476053.12924886,0.0001886,2]
[381462628,1756223441814,-168.0,0.00018867,2]
[381462630,1756223441824,-500.0,0.00018873,2]
[381462632,1756223441834,-500.0,0.00018873,2]
[381462634,1756223441843,-272.00796659,0.00018873,2]
[381462636,1756223441853,-500.0,0.00018873,2]
[381462638,1756223441862,-500.0,0.00018873,2]
[381462640,1756223441872,-500.0,0.00018873,2]
[381462642,1756223441881,-500.0,0.00018873,2]
[381462644,1756223441892,-500.0,0.00018873,2]
[381462646,1756223441901,-160.98716023,0.00018873,2]
[381462648,1756223441910,-500.0,0.00018873,2]
[381462650,1756223441921,-500.0,0.00018873,2]
[381462652,1756223441930,-500.0,0.00018873,2]
[381462654,1756223441939,-500.0,0.00018873,2]
[381462656,1756223441948,-501.90964086,0.00018873,2]
[381462658,1756223441958,-500.0,0.00018873,2]
[381462660,1756223441967,-460.2017041,0.00018873,2]
[381462662,1756223441977,-500.0,0.00018873,2]
[381462664,1756223441986,-221.30394234,0.00018873,2]
[381462666,1756223441996,-500.54614658,0.00018873,2]
[381462668,1756223442006,-500.0,0.00018873,2]
[381462670,1756223442016,-500.3571981,0.00018873,2]
[381462672,1756223442025,-500.0,0.00018873,2]
[381462674,1756223442035,-500.0,0.00018873,2]
[381462676,1756223442045,-500.0,0.00018873,2]
[381462678,1756223442055,-500.0,0.00018873,2]
[381462680,1756223442064,-500.0,0.00018873,2]
[381462682,1756223442073,-500.0,0.00018873,2]
[381462684,1756223442086,-500.0,0.00018873,2]
[381462686,1756223442095,-500.0,0.00018873,2]
[381462688,1756223442104,-500.0,0.00018873,2]
[381462690,1756223442113,-500.0,0.00018873,2]
[381462692,1756223442123,-500.0,0.00018873,2]
[381462694,1756223442132,-400.83018053,0.00018873,2]
[381462696,1756223442141,-500.0,0.00018873,2]
[381462698,1756223442151,-500.0,0.00018873,2]
[381462701,1756223442160,-500.0,0.00018873,2]
[381462703,1756223442170,-872.66760971,0.000189,3]
[381462704,1756223442179,-12040.0936613,0.000189,2]
[381462707,1756223442188,-2800.0,0.000189,6]
[381462709,1756223442197,-6312.53845038,0.000189,2]
[381462710,1756223442207,-190.5423975,0.000189,2]
[381462713,1756223442216,-188.0,0.00018917,2]
[381462714,1756223442226,-456.75611087,0.00018925,2]
[381462716,1756223442235,-1000.0,0.0001897,2]
[381462718,1756223442246,-1000.0,0.0001897,2]
[381462720,1756223442255,-500.0,0.0001897,2]
[381462722,1756223442264,-500.0,0.0001897,2]
[381462724,1756223442273,-168.0,0.00018986,2]
[381462726,1756223442283,-152.9,0.0001899,2]
[381462728,1756223442292,-423.4246746,0.00018999,2]
[381462730,1756223442302,-88340.82011987,0.00019,2]
[381462732,1756223442311,-5065.97553237,0.00019,2]
[381462734,1756223442321,-3610.88629926,0.00019,2]
[381462736,1756223442330,-1500.0,0.00019068,2]
[381462738,1756223442340,-500.0,0.00019068,2]
[381462740,1756223442349,-1000.0,0.0001907,2]
[381462742,1756223442358,-500.0,0.0001907,2]
[381462744,1756223442367,-500.0,0.00019095,2]
[381462746,1756223442376,-234.8582374,0.0001916,2]
[381462748,1756223442385,-151.0,0.00019178,2]
[381462750,1756223442395,-5000.0,0.00019178,2]
[381462752,1756223442405,-150.0,0.00019178,2]
[381462754,1756223442414,-168.0,0.00019218,2]
[381462756,1756223442423,-12040.0936613,0.00019233,2]
[381462758,1756223442432,-6312.53845038,0.00019233,2]
[381462760,1756223442442,-277.35679052,0.00019258,2]
[381462762,1756223442451,-2702.0,0.00019277,2]
[381462764,1756223442460,-168.0,0.00019292,2]
[381462766,1756223442470,-160.0,0.00019308,2]
[381462768,1756223442479,-844.63891918,0.00019308,2]
[381462770,1756223442489,-458.7662338,0.00019308,2]
[381462772,1756223442499,-212.18043798,0.00019308,2]
[381462774,1756223442509,-160.0,0.00019308,2]
[381462776,1756223442519,-3215.0,0.0001931,2]
[381462778,1756223442527,-1000.0,0.00019334,2]
[381462780,1756223442537,-334.5472959,0.00019358,2]
[381462782,1756223442547,-168.0,0.00019361,2]
[381462784,1756223442556,-500.0,0.00019369,2]
[381462786,1756223442566,-168.0,0.00019382,2]
[381462788,1756223442575,-168.0,0.00019385,2]
[381462790,1756223442584,-168.0,0.00019398,2]
[381462792,1756223442593,-2000.0,0.00019399,2]
[381462794,1756223442602,-168.0,0.0001942,2]
[381462796,1756223442611,-1000.0,0.00019421,2]
[381462800,1756223442622,-1000.0,0.00019421,2]
[381462803,1756223442631,-1002.88809515,0.00019421,2]
[381462805,1756223442640,-1000.0,0.00019421,2]
[381462808,1756223442649,-1000.0,0.00019421,2]
[381462810,1756223442658,-1000.0,0.00019421,2]
[381462812,1756223442667,-1000.0,0.00019421,2]
[381462814,1756223442676,-1000.0,0.00019421,2]
[381462815,1756223442685,-679.05146911,0.00019421,2]
[381462818,1756223442695,-1000.0,0.00019421,2]
[381462819,1756223442704,-1000.0,0.00019421,2]
[381462822,1756223442713,-641.19074706,0.00019421,2]
[381462825,1756223442724,-1000.0,0.00019421,2]
[381462827,1756223442735,-1000.0,0.00019421,2]
[381462830,1756223442748,-1000.0,0.00019421,2]
[381462832,1756223442758,-1000.0,0.00019421,2]
[381462834,1756223442767,-500.8327188,0.00019421,2]
[381462836,1756223442777,-1000.0,0.00019421,2]
[381462838,1756223442787,-1000.0,0.00019421,2]
[381462839,1756223442796,-1000.0,0.00019421,2]
[381462841,1756223442805,-1000.0,0.00019421,2]
[381462843,1756223442815,-1000.0,0.00019421,2]
[381462845,1756223442825,-1000.0,0.00019421,2]
[381462847,1756223442835,-1000.0,0.00019421,2]
[381462849,1756223442844,-1000.0,0.00019421,2]
[381462851,1756223442854,-1000.0,0.00019421,2]
[381462853,1756223442863,-1000.0,0.00019421,2]
[381462855,1756223442874,-1000.0,0.00019452,2]
[381462857,1756223442885,-1000.0,0.00019452,2]
[381462891,1756223443197,-1000.0,0.00019452,2]
[381462893,1756223443207,-1000.0,0.00019452,2]
[381462895,1756223443216,-491.07179834,0.00019452,2]
[381462897,1756223443226,-1000.0,0.00019452,2]
[381462899,1756223443235,-1000.0,0.00019452,2]
[381462901,1756223443244,-588.30453535,0.00019452,2]
[381462903,1756223443254,-168.0,0.00019456,2]
[381462905,1756223443263,-300.0,0.00019501,3]
[381462907,1756223443273,-168.0,0.00019538,2]
[381462909,1756223443282,-12040.0936613,0.00019567,2]
[381462911,1756223443291,-6312.53845038,0.00019567,2]
[381462913,1756223443301,-168.0,0.00019567,2]
[381462915,1756223443310,-1582.39901521,0.00019616,2]
[381462917,1756223443319,-500.0,0.00019643,2]
[381462919,1756223443332,-354.0,0.0001967,2]
[381462921,1756223443342,-364.53094331,0.000197,2]
[381462923,1756223443351,-162.86024058,0.00019702,2]
[381462925,1756223443360,-156.587,0.00019726,2]
[381462927,1756223443370,-168.0,0.00019768,2]
[381462929,1756223443380,-168.0,0.00019793,2]
[381462931,1756223443389,-496.79717715,0.000198,3]
[381462933,1756223443399,-3215.0,0.00019809,2]
[381462935,1756223443408,-1363.78585,0.0001982,2]
[381462937,1756223443417,-150.0,0.00019828,2]
[381462939,1756223443427,-180.59,0.00019851,2]
[381462941,1756223443436,-633.8,0.00019863,2]
[381462943,1756223443446,-168.0,0.00019877,2]
[381462945,1756223443455,-12040.0936613,0.000199,2]
[381462947,1756223443466,-6312.53845038,0.000199,2]
[381462949,1756223443475,-200.0,0.00019905,2]
[381462951,1756223443485,-168.0,0.00019913,2]
[381462953,1756223443495,-500.0,0.00019917,2]
[381462955,1756223443504,-152.9,0.00019958,2]
[381462957,1756223443513,-1002.07266514,0.00019968,2]
[381462959,1756223443523,-1500.0,0.00019968,2]
[381462961,1756223443533,-893.91581456,0.00019968,2]
[381462963,1756223443542,-1500.0,0.00019968,2]
[381462964,1756223443551,-1500.0,0.00019968,2]
[381462966,1756223443560,-1500.0,0.00019968,2]
[381462968,1756223443570,-1500.0,0.00019968,2]
[381462970,1756223443579,-1500.0,0.00019968,2]
[381462973,1756223443594,-1472.83011308,0.00019968,2]
[381462974,1756223443611,-1500.0,0.00019968,2]
[381462976,1756223443620,-1500.0,0.00019968,2]
[381462978,1756223443631,-1500.0,0.00019968,2]
[381462981,1756223443643,-917.10743411,0.00019968,2]
[381462982,1756223443653,-504.11736908,0.00019968,2]
[381462984,1756223443663,-1500.0,0.00019968,2]
[381462986,1756223443674,-1500.0,0.00019968,2]
[381462988,1756223443687,-1106.40031721,0.00019968,2]
[381462990,1756223443696,-1500.0,0.00019968,2]
[381462992,1756223443706,-1500.0,0.00019968,2]
[381462994,1756223443716,-1500.0,0.00019968,2]
[381462996,1756223443725,-1500.0,0.00019968,2]
[381462998,1756223443737,-1500.0,0.00019968,2]
[381463000,1756223443755,-1500.0,0.00019968,2]
[381463002,1756223443765,-1000.0,0.0001997,2]
[381463004,1756223443775,-500.0,0.0001997,2]
[381463006,1756223443786,-4000.0,0.0002,4]
[381463008,1756223443796,-154.0,0.0002,2]
[381463010,1756223443806,-213.59,0.0002,2]
[381463012,1756223443821,-1000.0,0.0002,2]
[381463014,1756223443831,-200.841902,0.0002,2]
[381463016,1756223443840,-168.0,0.0002011,2]
[381463018,1756223443850,-377.22128039,0.00020134,2]
[381463020,1756223443860,-168.0,0.00020163,2]
[381463022,1756223443870,-296.78,0.00020187,2]
[381463024,1756223443880,-167.6,0.00020191,2]
[381463026,1756223443890,-12040.0936613,0.00020233,2]
[381463028,1756223443900,-6312.53845038,0.00020233,2]
[381463030,1756223443910,-162.380719,0.00020274,2]
[381463032,1756223443920,-12003.3082242,0.00020291,2]
[381463034,1756223443931,-241.0,0.000203,2]
[381463036,1756223443941,-778.0,0.000203,2]
[381463038,1756223443951,-180.0,0.00020323,2]
[381463040,1756223443961,-182.80026418,0.0002037,2]
[381463042,1756223443970,-185.23,0.00020409,2]
[381463044,1756223443980,-234.8582374,0.00020421,2]
[381463045,1756223443989,-381.0,0.000205,2]
[381463047,1756223444000,-325.47934156,0.00020516,2]
[381463049,1756223444010,-2000.0,0.00020516,2]
[381463051,1756223444020,-1153.2398906,0.00020516,2]
[381463053,1756223444029,-235.4229631,0.00020516,2]
[381463055,1756223444040,-2000.0,0.00020516,2]
[381463057,1756223444049,-1000.93939924,0.00020516,2]
[381463059,1756223444059,-1466.39634687,0.00020516,2]
[381463061,1756223444069,-2000.0,0.00020516,2]
[381463063,1756223444079,-2000.0,0.00020516,2]
[381463065,1756223444089,-2000.0,0.00020516,2]
[381463067,1756223444099,-151.18306465,0.00020516,2]
[381463069,1756223444109,-2000.0,0.00020516,2]
[381463071,1756223444119,-2000.0,0.00020516,2]
[381463073,1756223444129,-2000.0,0.00020516,2]
[381463075,1756223444141,-1784.05329204,0.00020516,2]
[381463077,1756223444152,-1720.12734939,0.00020516,2]
[381463080,1756223444162,-2000.0,0.00020516,2]
[381463082,1756223444172,-2351.0,0.00020526,2]
[381463083,1756223444182,-12040.0936613,0.00020567,2]
[381463085,1756223444192,-6312.53845038,0.00020567,2]
[381463087,1756223444201,-300.0,0.00020569,3]
[381463089,1756223444211,-287.61899177,0.00020627,2]
[381463091,1756223444221,-250.0,0.00020684,2]
[381463093,1756223444231,-346.92554585,0.00020727,2]
[381463095,1756223444242,-400.65243583,0.00020728,2]
[381463097,1756223444253,-300.0,0.00020739,4]
[381463099,1756223444263,-300.0,0.00020795,2]
[381463101,1756223444273,-2678.3000863,0.00020803,2]
[381463103,1756223444282,-1363.78584,0.0002082,2]
[381463105,1756223444294,-150.0,0.00020822,2]
[381463107,1756223444303,-150.0,0.00020822,2]
[381463109,1756223444313,-500.0,0.00020822,2]
[381463111,1756223444322,-150.0,0.00020822,2]
[381463113,1756223444333,-500.0,0.00020822,2]
[381463115,1756223444343,-500.0,0.00020822,2]
[381463117,1756223444354,-150.0,0.00020822,2]
[381463120,1756223444364,-200.0,0.00020822,2]
[381463122,1756223444375,-500.0,0.00020822,2]
[381463124,1756223444385,-500.0,0.00020822,2]
[381463126,1756223444395,-500.0,0.00020822,2]
[381463128,1756223444405,-150.0,0.00020822,2]
[381463130,1756223444415,-150.0,0.00020822,2]
[381463132,1756223444425,-500.0,0.00020822,2]
[381463134,1756223444435,-500.0,0.00020822,2]
[381463135,1756223444445,-191.730891,0.00020822,2]
[381463137,1756223444455,-437.0,0.00020822,2]
[381463139,1756223444466,-150.0,0.00020822,2]
[381463141,1756223444476,-1119.0,0.00020822,2]
[381463143,1756223444485,-300.0,0.00020822,2]
[381463145,1756223444494,-150.0,0.00020822,2]
[381463147,1756223444505,-150.0,0.00020822,2]
[381463149,1756223444514,-500.0,0.00020822,2]
[381463151,1756223444524,-150.0,0.00020822,2]
[381463153,1756223444533,-500.0,0.00020822,2]
[381463155,1756223444543,-150.0,0.00020822,2]
[381463157,1756223444552,-589.0,0.00020822,2]
[381463159,1756223444562,-500.0,0.00020822,2]
[381463161,1756223444572,-500.0,0.00020822,2]
[381463163,1756223444581,-500.0,0.00020822,2]
[381463165,1756223444591,-150.0,0.00020822,2]
[381463167,1756223444601,-150.0,0.00020822,2]
[381463169,1756223444610,-500.0,0.00020822,2]
[381463171,1756223444620,-213.76846305,0.00020822,2]
[381463173,1756223444629,-168.3888056,0.00020822,2]
[381463175,1756223444639,-347.0,0.0002085,2]
[381463177,1756223444649,-180.59,0.0002088,2]
[381463179,1756223444658,-250000.0,0.000209,2]
[381463181,1756223444668,-151.0,0.000209,2]
[381463183,1756223444677,-151.0,0.000209,2]
[381463185,1756223444687,-151.0,0.000209,2]
[381463186,1756223444696,-151.0,0.000209,2]
[381463188,1756223444706,-151.0,0.000209,2]
[381463190,1756223444715,-151.0,0.000209,2]
[381463192,1756223444725,-151.0,0.000209,2]
[381463194,1756223444736,-151.0,0.000209,2]
[381463197,1756223444749,-151.0,0.000209,2]
[381463198,1756223444762,-151.0,0.000209,2]
[381463200,1756223444781,-151.0,0.000209,2]
[381463202,1756223444791,-151.0,0.000209,2]
[381463204,1756223444801,-151.0,0.000209,2]
[381463206,1756223444810,-151.0,0.000209,2]
[381463208,1756223444821,-151.0,0.000209,2]
[381463210,1756223444831,-151.949429,0.000209,2]
[381463212,1756223444840,-151.0,0.000209,2]
[381463214,1756223444851,-151.0,0.000209,2]
[381463216,1756223444861,-151.0,0.000209,2]
[381463218,1756223444870,-213.078904,0.000209,2]
[381463220,1756223444881,-151.0,0.000209,2]
[381463222,1756223444890,-213.078904,0.000209,2]
[381463224,1756223444900,-213.078904,0.000209,2]
[381463226,1756223444909,-213.078904,0.000209,2]
[381463228,1756223444919,-12040.0936613,0.000209,2]
[381463230,1756223444929,-151.0,0.000209,2]
[381463232,1756223444938,-151.0,0.000209,2]
[381463234,1756223444948,-151.0,0.000209,2]
[381463236,1756223444957,-151.0,0.000209,2]
[381463237,1756223444967,-151.0,0.000209,2]
[381463239,1756223444977,-151.0,0.000209,2]
[381463241,1756223444986,-151.0,0.000209,2]
[381463243,1756223444996,-151.0,0.000209,2]
[381463245,1756223445007,-151.0,0.000209,2]
[381463248,1756223445027,-151.0,0.000209,2]
[381463249,1756223445049,-151.0,0.000209,2]
[381463251,1756223445067,-151.0,0.000209,2]
[381463253,1756223445081,-151.0,0.000209,2]
[381463255,1756223445091,-214.674022,0.000209,2]
[381463257,1756223445100,-151.0,0.000209,2]
[381463259,1756223445110,-151.0,0.000209,2]
[381463261,1756223445120,-160.330387,0.000209,2]
[381463263,1756223445131,-160.330387,0.000209,2]
[381463265,1756223445141,-160.330387,0.000209,2]
[381463267,1756223445151,-151.0,0.000209,2]
[381463269,1756223445161,-160.330387,0.000209,2]
[381463271,1756223445171,-151.0,0.000209,2]
[381463273,1756223445181,-308.720186,0.000209,2]
[381463275,1756223445191,-293.227664,0.000209,2]
[381463277,1756223445201,-308.720186,0.000209,2]
[381463279,1756223445211,-151.0,0.000209,2]
[381463281,1756223445220,-151.0,0.000209,2]
[381463283,1756223445231,-151.0,0.000209,2]
[381463285,1756223445241,-151.0,0.000209,2]
[381463287,1756223445252,-151.0,0.000209,2]
[381463289,1756223445262,-151.0,0.000209,2]
[381463291,1756223445272,-151.0,0.000209,2]
[381463293,1756223445282,-151.0,0.000209,2]
[381463295,1756223445292,-151.139118,0.000209,2]
[381463297,1756223445302,-210.959121,0.000209,2]
[381463299,1756223445311,-151.0,0.000209,2]
[381463301,1756223445321,-151.0,0.000209,2]
[381463303,1756223445330,-151.0,0.000209,2]
[381463305,1756223445340,-151.0,0.000209,2]
[381463307,1756223445351,-424.953487,0.000209,2]
[381463308,1756223445360,-151.0,0.000209,2]
[381463310,1756223445370,-424.953487,0.000209,2]
[381463312,1756223445380,-424.953487,0.000209,2]
[381463314,1756223445390,-424.953487,0.000209,2]
[381463316,1756223445400,-151.0,0.000209,2]
[381463318,1756223445411,-151.0,0.000209,2]
[381463320,1756223445422,-205.177017,0.000209,2]
[381463322,1756223445431,-151.0,0.000209,2]
[381463324,1756223445441,-205.177017,0.000209,2]
[381463326,1756223445450,-205.177017,0.000209,2]
[381463328,1756223445461,-151.0,0.000209,2]
[381463330,1756223445471,-205.177017,0.000209,2]
[381463332,1756223445480,-151.0,0.000209,2]
[381463334,1756223445490,-248.462664,0.000209,2]
[381463336,1756223445500,-151.0,0.000209,2]
[381463338,1756223445511,-248.462664,0.000209,2]
[381463340,1756223445521,-151.0,0.000209,2]
[381463342,1756223445531,-248.462664,0.000209,2]
[381463345,1756223445541,-151.0,0.000209,2]
[381463347,1756223445551,-151.0,0.000209,2]
[381463349,1756223445561,-151.0,0.000209,2]
[381463352,1756223445570,-151.0,0.000209,2]
[381463354,1756223445580,-151.0,0.000209,2]
[381463356,1756223445589,-151.0,0.000209,2]
[381463358,1756223445599,-151.0,0.000209,2]
[381463360,1756223445609,-151.0,0.000209,2]
[381463362,1756223445619,-151.0,0.000209,2]
[381463364,1756223445629,-151.0,0.000209,2]
[381463366,1756223445639,-151.0,0.000209,2]
[381463367,1756223445648,-252.156017,0.000209,2]
[381463368,1756223445658,-151.0,0.000209,2]
[381463369,1756223445668,-151.0,0.000209,2]
[381463370,1756223445677,-151.0,0.000209,2]
[381463371,1756223445687,-157.765526,0.000209,2]
[381463373,1756223445696,-151.0,0.000209,2]
[381463374,1756223445706,-252.156017,0.000209,2]
[381463375,1756223445716,-151.0,0.000209,2]
[381463376,1756223445725,-151.0,0.000209,2]
[381463377,1756223445736,-151.0,0.000209,2]
[381463378,1756223445748,-151.0,0.000209,2]
[381463379,1756223445758,-157.765526,0.000209,2]
[381463380,1756223445768,-248.462664,0.000209,2]
[381463381,1756223445777,-252.156017,0.000209,2]
[381463382,1756223445787,-151.0,0.000209,2]
[381463383,1756223445796,-157.765526,0.000209,2]
[381463384,1756223445806,-151.0,0.000209,2]
[381463385,1756223445817,-151.0,0.000209,2]
[381463386,1756223445826,-252.156017,0.000209,2]
[381463388,1756223445836,-151.0,0.000209,2]
[381463390,1756223445845,-157.765526,0.000209,2]
[381463392,1756223445855,-151.0,0.000209,2]
[381463394,1756223445864,-151.0,0.000209,2]
[381463395,1756223445874,-151.0,0.000209,2]
[381463397,1756223445883,-151.0,0.000209,2]
[381463399,1756223445892,-151.0,0.000209,2]
[381463401,1756223445902,-181.189648,0.000209,2]
[381463404,1756223445912,-181.189648,0.000209,2]
[381463406,1756223445922,-151.0,0.000209,2]
[381463408,1756223445932,-181.189648,0.000209,2]
[381463410,1756223445941,-151.0,0.000209,2]
[381463411,1756223445950,-181.189648,0.000209,2]
[381463414,1756223445961,-151.0,0.000209,2]
[381463416,1756223445970,-151.0,0.000209,2]
[381463418,1756223445979,-151.0,0.000209,2]
[381463420,1756223445989,-151.0,0.000209,2]
[381463422,1756223446000,-151.0,0.000209,2]
[381463424,1756223446009,-151.0,0.000209,2]
[381463426,1756223446018,-151.0,0.000209,2]
[381463428,1756223446028,-151.0,0.000209,2]
[381463430,1756223446037,-151.0,0.000209,2]
[381463432,1756223446047,-151.0,0.000209,2]
[381463434,1756223446056,-1002.093445,0.000209,2]
[381463437,1756223446066,-435.859176,0.000209,2]
[381463439,1756223446076,-1002.093445,0.000209,2]
[381463441,1756223446086,-435.859176,0.000209,2]
[381463443,1756223446095,-151.225483,0.000209,2]
[381463445,1756223446105,-151.0,0.000209,2]
[381463447,1756223446114,-432.230526,0.000209,2]
[381463449,1756223446124,-151.0,0.000209,2]
[381463450,1756223446134,-432.230526,0.000209,2]
[381463452,1756223446143,-1002.093445,0.000209,2]
[381463454,1756223446153,-435.859176,0.000209,2]
[381463456,1756223446162,-432.230526,0.000209,2]
[381463458,1756223446173,-1002.093445,0.000209,2]
[381463460,1756223446182,-435.859176,0.000209,2]
[381463462,1756223446191,-151.0,0.000209,2]
[381463464,1756223446201,-432.230526,0.000209,2]
[381463466,1756223446210,-151.0,0.000209,2]
[381463468,1756223446220,-421.508357,0.000209,2]
[381463470,1756223446229,-151.0,0.000209,2]
[381463472,1756223446238,-151.0,0.000209,2]
[381463474,1756223446248,-421.508357,0.000209,2]
[381463476,1756223446258,-484.268766,0.000209,2]
[381463478,1756223446267,-151.0,0.000209,2]
[381463480,1756223446277,-421.508357,0.000209,2]
[381463482,1756223446286,-484.268766,0.000209,2]